bitfinex/quotes_ETHUSD_20250415
["timestamp","ask_amount","ask_price","bid_price","bid_amount"]
[1744748385141,12.39908612,1613.1,1613.0,0.91853403]
[1744748391544,12.39908612,1613.1,1613.0,0.57408434]
[1744748396937,12.39908612,1613.1,1613.0,0.91873152]
[1744748402243,6.19891223,1613.2,1613.0,0.91873152]
[1744748402553,6.19891223,1613.2,1613.0,0.57408434]
[1744748402952,6.19891223,1613.2,1613.1,0.57408434]
[1744748402953,12.39790238,1613.2,1613.1,0.57408434]
[1744748403263,6.19891223,1613.2,1613.1,0.918909]
[1744748403977,6.3099,1613.6,1613.1,0.918909]
[1744748404175,0.8199,1613.6,1613.2,0.7845]
[1744748404340,0.8199,1613.6,1613.2,0.34482466]
[1744748404341,6.19847517,1613.3,1613.2,0.34482466]
[1744748404936,6.19847517,1613.3,1613.2,0.918909]
[1744748405136,6.97117517,1613.3,1613.2,0.918909]
[1744748405738,6.19847517,1613.3,1613.2,0.918909]
[1744748406079,6.19847517,1613.3,1613.2,0.57408434]
[1744748406954,8.81546999,1613.3,1613.2,0.57408434]
[1744748407265,6.97117517,1613.3,1613.2,0.57408434]
[1744748408035,6.20092007,1612.7,1612.5,0.7916]
[1744748408450,12.40195733,1612.7,1612.5,0.7916]
[1744748408652,12.40195733,1612.7,1612.6,0.34486815]
[1744748409773,6.20092007,1612.7,1612.6,0.34486815]
[1744748412343,6.98072007,1612.7,1612.6,0.34486815]
[1744748412653,15.99772901,1612.8,1612.0,6.97364595]
[1744748412654,12.40483744,1612.3,1612.0,6.97364595]
[1744748412976,6.20163236,1612.5,1612.2,6.97288221]
[1744748413269,12.40334976,1612.5,1612.2,0.7702]
[1744748413851,6.20194088,1612.4,1612.2,0.7702]
[1744748414362,12.40356482,1612.5,1612.2,0.7702]
[1744748415035,6.20227492,1612.4,1612.2,0.7702]
[1744748415240,6.20227492,1612.4,1612.1,0.7702]
[1744748415639,12.40505933,1612.3,1612.1,0.7702]
[1744748416677,12.40500105,1612.3,1612.1,0.7702]
[1744748416975,6.20270437,1612.2,1612.1,0.7702]
[1744748417154,12.40561347,1612.2,1612.0,0.8191]
[1744748417480,6.20308913,1612.1,1612.0,0.8191]
[1744748417643,12.40562987,1612.2,1612.0,0.8191]
[1744748417841,12.40557609,1612.2,1612.0,0.8191]
[1744748418078,12.40559524,1612.2,1612.0,0.8191]
[1744748418278,6.20270437,1612.2,1612.0,0.8191]
[1744748418597,6.20359218,1612.0,1611.8,6.3123]
[1744748419275,6.20308913,1612.1,1611.8,6.3123]
[1744748419583,7.02437817,1612.4,1612.0,7.02856468]
[1744748419782,13.22658271,1612.4,1612.0,7.02856468]
[1744748419978,6.20207817,1612.4,1612.0,13.23190823]
[1744748420170,6.20282248,1612.2,1612.0,0.8253]
[1744748420351,12.40580931,1612.2,1612.0,0.8253]
[1744748420551,6.20282248,1612.2,1612.0,0.8253]
[1744748420751,12.40494589,1612.3,1612.0,0.8253]
[1744748420957,6.20280995,1612.2,1612.0,0.8253]
[1744748421162,6.20280995,1612.2,1611.8,11.69122104]
[1744748421460,6.20308913,1612.1,1611.9,0.7996]
[1744748421660,12.40640263,1612.1,1611.8,5.487]
[1744748422147,6.20308913,1612.1,1611.8,11.69116579]
[1744748422344,6.20308913,1612.1,1611.8,11.69110564]
[1744748422568,6.20308913,1612.1,1611.8,17.8952085]
[1744748422778,6.20308913,1612.1,1611.9,0.57270372]
[1744748422973,12.40569303,1612.2,1611.9,0.57270372]
[1744748423275,12.40572969,1612.2,1611.9,0.57270372]
[1744748423586,12.40585846,1612.2,1611.9,6.20382624]
[1744748423882,6.20279331,1612.2,1611.9,6.20382624]
[1744748424381,12.40568809,1612.2,1611.9,6.20382624]
[1744748424785,12.40567197,1612.2,1611.9,6.20382624]
[1744748424953,6.20279331,1612.2,1611.9,6.20382624]
[1744748425153,12.4056602,1612.2,1611.9,6.20382624]
[1744748425687,6.20279331,1612.2,1611.9,6.20382624]
[1744748425854,12.40570271,1612.2,1611.9,6.20382624]
[1744748426054,12.40567956,1612.2,1611.9,6.20382624]
[1744748426587,12.40566586,1612.2,1611.9,6.20382624]
[1744748427083,6.20279331,1612.2,1611.9,6.20382624]
[1744748427294,12.40567987,1612.2,1611.9,6.20382624]
[1744748427650,7.01154427,1612.4,1612.1,6.20295807]
[1744748427854,6.20242267,1612.3,1612.0,6.96049405]
[1744748428061,7.01153527,1612.4,1612.0,6.96049405]
[1744748428062,13.21367864,1612.4,1612.0,13.16384507]
[1744748428384,6.20203527,1612.4,1612.2,0.7573]
[1744748428553,12.404126,1612.4,1612.2,0.7573]
[1744748429287,6.74991895,1613.0,1612.2,1.57257557]
[1744748429288,0.7506,1612.7,1612.2,1.57257557]
[1744748429478,12.40277454,1612.6,1612.2,7.71292881]
[1744748429788,12.40277454,1612.6,1612.2,19.40045683]
[1744748430254,6.20157122,1612.5,1612.2,13.19792881]
[1744748430461,6.20190426,1612.5,1612.2,6.2423]
[1744748431068,6.95145181,1612.7,1612.2,6.2423]
[1744748431273,13.15245128,1612.7,1612.3,6.26427212]
[1744748431467,6.95145181,1612.7,1612.4,6.20185954]
[1744748431667,6.20085181,1612.7,1612.4,13.16451908]
[1744748431957,6.20118612,1612.6,1612.4,0.7608]
[1744748432363,6.20088412,1612.7,1612.2,12.44838846]
[1744748432364,6.20173221,1612.5,1612.2,12.44838846]
[1744748432568,12.40251143,1612.6,1612.3,6.26431842]
[1744748432902,6.20116581,1612.6,1612.3,6.20230172]
[1744748434201,12.40246421,1612.6,1612.3,6.20230172]
[1744748434503,6.20116581,1612.6,1612.3,6.20230172]
[1744748434697,6.20116581,1612.6,1612.3,6.26431832]
[1744748435006,5.485,1612.9,1612.3,0.0620166]
[1744748435170,3.0,1613.0,1612.3,0.0620166]
[1744748435171,6.19962802,1613.0,1612.5,0.7608]
[1744748435369,6.2001393,1612.9,1612.6,6.20115378]
[1744748435593,12.4004776,1612.9,1612.5,13.16369304]
[1744748435792,6.20040542,1612.8,1612.5,6.96224652]
[1744748436001,12.40102401,1612.8,1612.5,6.96224652]
[1744748436389,12.40102401,1612.8,1612.6,0.57315622]
[1744748436812,12.40096264,1612.8,1612.6,0.57315622]
[1744748437012,6.20078129,1612.7,1612.6,0.57315622]
[1744748437309,6.20133506,1612.6,1612.3,6.97614748]
[1744748437611,12.40278291,1612.6,1612.3,6.97614748]
[1744748437772,12.40278291,1612.6,1612.4,0.34440345]
[1744748437971,6.20054008,1612.8,1612.5,6.97542849]
[1744748438204,6.20054008,1612.8,1612.5,7.54934253]
[1744748438417,6.20054008,1612.8,1612.5,13.8128799]
[1744748438572,6.20054008,1612.8,1612.5,7.54923862]
[1744748439079,6.2004223,1612.8,1612.5,7.54923862]
[1744748439485,6.2004223,1612.8,1612.6,0.57391404]
[1744748440112,12.40096697,1612.8,1612.6,0.57391404]
[1744748440415,12.4009978,1612.8,1612.7,0.57391404]
[1744748441322,6.20144155,1612.6,1612.3,7.0123991]
[1744748441606,12.40292616,1612.6,1612.4,0.34431387]
[1744748442224,12.40292616,1612.6,1612.3,7.0123991]
[1744748442410,12.40292616,1612.6,1612.5,0.57394149]
[1744748443415,6.20144155,1612.6,1612.5,0.57394149]
[1744748444315,7.00174155,1612.6,1612.5,0.57394149]
[1744748445119,6.20197959,1612.4,1612.2,6.2942]
[1744748445284,12.40413554,1612.4,1612.2,6.2942]
[1744748445617,12.40413554,1612.4,1612.2,5.484]
[1744748445993,12.40413554,1612.4,1612.3,0.5741765]
[1744748446188,12.40413554,1612.4,1612.3,0.9186808]
[1744748446704,6.20197959,1612.4,1612.3,0.9186808]
[1744748450322,12.40342959,1612.5,1612.3,0.9186808]
[1744748450619,6.201935,1612.4,1612.3,0.9186808]
[1744748450809,6.201935,1612.4,1612.3,0.3445043]
[1744748451993,6.2016367,1612.5,1612.3,0.9189236]
[1744748452517,6.2016367,1612.5,1612.4,0.3445043]
[1744748453223,6.2016367,1612.5,1612.4,0.9189236]
[1744748453722,0.7905,1612.8,1612.4,1.7411236]
[1744748453900,6.20079853,1612.7,1612.4,8.00491833]
[1744748454098,12.40171844,1612.7,1612.4,9.78529642]
[1744748454302,6.20079853,1612.7,1612.5,0.5744193]
[1744748454607,12.40170668,1612.7,1612.5,0.9189236]
[1744748455110,12.40170668,1612.7,1612.6,0.9189236]
[1744748455522,6.20079853,1612.7,1612.6,0.9189236]
[1744748455824,6.99094402,1612.8,1612.6,0.9189236]
[1744748456197,6.99094402,1612.8,1612.7,0.5744193]
[1744748456517,6.20044402,1612.8,1612.7,0.5744193]
[1744748457595,6.20044402,1612.8,1612.7,0.91915382]
[1744748459125,6.20044402,1612.8,1612.7,0.5744193]
[1744748461299,7.02834402,1612.8,1612.7,0.5744193]
[1744748461811,7.02834402,1612.8,1612.4,6.95761971]
[1744748462019,6.20090966,1612.7,1612.4,13.22145554]
[1744748462325,12.40203016,1612.7,1612.4,6.95761971]
[1744748462935,12.40203016,1612.7,1612.5,0.91964394]
[1744748463428,12.40203016,1612.7,1612.6,0.34486987]
[1744748464297,6.20116581,1612.6,1612.3,6.20228813]
[1744748464496,6.20155542,1612.5,1612.3,6.20228813]
[1744748464710,6.20155542,1612.5,1612.2,12.43947636]
[1744748464923,6.20155542,1612.5,1612.3,0.34488543]
[1744748465728,6.20155542,1612.5,1612.4,0.91973386]
[1744748467823,6.99695542,1612.5,1612.4,0.34488543]
[1744748468134,6.99633777,1612.7,1612.3,7.02616566]
[1744748468329,6.20141884,1612.6,1612.3,7.02616566]
[1744748468530,12.40292127,1612.6,1612.3,7.02616566]
[1744748468734,12.40277298,1612.6,1612.3,7.02616566]
[1744748469227,6.20155038,1612.5,1612.4,0.34488543]
[1744748469834,6.20155038,1612.5,1612.4,0.91980137]
[1744748471430,6.20135414,1612.6,1612.4,0.91980137]
[1744748471634,6.20155038,1612.5,1612.4,0.91980137]
[1744748472548,6.95093113,1612.9,1612.5,0.7543]
[1744748472715,6.95093113,1612.9,1612.6,6.20100592]
[1744748472921,12.4004606,1612.9,1612.6,6.20100592]
[1744748473130,12.4004606,1612.9,1612.7,0.91980137]
[1744748473613,6.20039682,1612.8,1612.7,0.91980137]
[1744748474034,6.97979682,1612.8,1612.7,0.91980137]
[1744748475053,12.39970928,1613.0,1612.7,7.53766494]
[1744748475221,12.39970928,1613.0,1612.8,0.57491594]
[1744748475414,6.2000124,1612.9,1612.8,0.57491594]
[1744748476359,12.39954591,1613.0,1612.8,0.57491594]
[1744748476554,6.2000124,1612.9,1612.8,0.57491594]
[1744748477858,6.97505374,1613.1,1612.8,0.57491594]
[1744748478171,13.17464562,1613.1,1612.8,0.9195036]
[1744748478321,6.19935374,1613.1,1612.9,0.57491594]
[1744748478526,6.19962802,1613.0,1612.9,0.57491594]
[1744748478755,6.19962802,1613.0,1612.9,0.9195036]
[1744748479162,12.39896979,1613.1,1612.9,0.9195036]
[1744748479362,12.39879878,1613.1,1612.9,0.9195036]
[1744748479653,12.39879878,1613.1,1613.0,0.57491594]
[1744748480448,6.19857656,1613.3,1613.0,12.2554194]
[1744748480649,6.19857656,1613.3,1613.0,6.05591594]
[1744748480850,6.19897299,1613.2,1613.0,6.05591594]
[1744748481050,6.19897299,1613.2,1613.1,0.34399313]
[1744748481233,6.19897299,1613.2,1613.1,0.91890907]
[1744748482248,6.19897299,1613.2,1613.1,0.57491594]
[1744748482753,6.9915122,1613.5,1613.1,7.5800862]
[1744748482919,6.19819897,1613.4,1613.1,7.5800862]
[1744748483736,6.19819897,1613.4,1613.2,0.57491594]
[1744748484329,12.39642244,1613.4,1613.2,0.57491594]
[1744748484531,12.39645081,1613.4,1613.1,0.8061]
[1744748484726,12.3965285,1613.4,1613.1,0.8061]
[1744748485051,6.19819897,1613.4,1613.1,7.06709744]
[1744748485254,6.99150835,1613.5,1613.1,8.13347405]
[1744748485460,13.1893645,1613.5,1613.2,6.19882176]
[1744748485629,13.1893645,1613.5,1613.3,6.05204188]
[1744748486061,6.19809098,1613.4,1613.3,6.05204188]
[1744748487653,6.19707424,1613.7,1613.4,7.00707371]
[1744748487982,6.19732275,1613.6,1613.5,0.57204188]
[1744748490380,7.00082275,1613.6,1613.5,0.57204188]
[1744748490541,6.19870293,1613.3,1613.2,5.476]
[1744748491480,12.39740586,1613.3,1613.2,5.476]
[1744748491677,12.39740586,1613.3,1613.0,0.832]
[1744748491879,12.39740586,1613.3,1613.2,6.04723953]
[1744748492488,12.39740586,1613.3,1613.2,0.57123953]
[1744748492783,13.22180586,1613.3,1613.2,6.04723953]
[1744748493088,13.22180586,1613.3,1613.2,0.57123953]
[1744748493377,6.1988594,1613.2,1613.1,5.476]
[1744748494185,6.1988594,1613.2,1613.1,6.04708174]
[1744748495202,13.22186201,1613.3,1613.1,6.04708174]
[1744748495356,12.39746201,1613.3,1613.1,6.04708174]
[1744748495801,12.39746201,1613.3,1613.2,0.57108174]
[1744748498994,12.39746201,1613.3,1613.2,6.04708174]
[1744748499193,12.39746201,1613.3,1613.2,0.57108174]
[1744748500871,6.19870293,1613.3,1613.2,0.57108174]
[1744748504496,13.21327172,1613.4,1613.2,0.57108174]
[1744748504684,6.1980977,1613.4,1613.2,1.38908174]
[1744748504883,12.39579461,1613.5,1613.2,1.38908174]
[1744748505201,12.39579461,1613.5,1613.3,0.57108174]
[1744748506117,12.39579461,1613.5,1613.4,0.57108174]
[1744748508634,13.21879461,1613.5,1613.4,0.57108174]
[1744748512444,12.39512618,1613.6,1613.4,0.57108174]
[1744748512587,6.19655471,1613.8,1613.4,4.1677504]
[1744748512896,6.19769387,1613.6,1613.5,0.91539079]
[1744748513732,7.01519387,1613.6,1613.5,0.57108174]
[1744748514720,7.01519387,1613.6,1613.5,1.14502041]
[1744748515095,7.01519387,1613.6,1613.5,0.57108174]
[1744748522856,10.01519387,1613.6,1613.5,0.57108174]
[1744748524820,6.19830062,1613.4,1613.2,0.57108174]
[1744748525018,6.19847517,1613.3,1613.2,0.57108174]
[1744748525219,6.19847517,1613.3,1613.2,0.91610002]
[1744748526150,12.39662489,1613.4,1613.2,0.91610002]
[1744748526445,6.19830062,1613.4,1613.2,0.91610002]
[1744748526749,12.39669805,1613.4,1613.3,0.57108174]
[1744748527047,12.39669805,1613.4,1613.3,0.91610002]
[1744748527408,6.19830062,1613.4,1613.3,0.91610002]
[1744748538148,6.19765745,1613.6,1613.3,1.72180002]
[1744748538450,6.19774025,1613.5,1613.4,0.34501828]
[1744748539148,6.19774025,1613.5,1613.4,0.91610002]
[1744748540418,6.97554025,1613.5,1613.4,0.91610002]
[1744748540643,6.97554025,1613.5,1613.4,1.49140334]
[1744748540830,6.97554025,1613.5,1613.4,1.14638506]
[1744748541347,6.97554025,1613.5,1613.4,0.57108174]
[1744748541846,6.19995443,1613.0,1612.8,6.2461]
[1744748542027,12.39977637,1613.0,1612.8,6.2461]
[1744748542220,12.39977637,1613.0,1612.8,0.7741]
[1744748542416,6.20039682,1612.8,1612.7,48.338]
[1744748542648,6.20039682,1612.8,1612.7,53.81]
[1744748543117,6.20039682,1612.8,1612.7,48.91359746]
[1744748543341,6.20039682,1612.8,1612.7,0.9208582]
[1744748544142,6.20039682,1612.8,1612.7,0.34526074]
[1744748545731,6.2000124,1612.9,1612.7,0.34526074]
[1744748545930,12.40023412,1612.9,1612.7,0.34526074]
[1744748546136,6.20039682,1612.8,1612.7,0.34526074]
[1744748547526,6.2000124,1612.9,1612.7,0.34526074]
[1744748547723,12.39954118,1613.0,1612.7,7.29963901]
[1744748548225,12.39954118,1613.0,1612.8,0.34526074]
[1744748549020,6.19974296,1613.0,1612.8,0.34526074]
[1744748549356,12.40017666,1612.9,1612.7,0.7536]
[1744748549948,6.2000124,1612.9,1612.7,0.7536]
[1744748550150,6.199688,1613.0,1612.8,0.34491326]
[1744748550350,12.3990787,1613.1,1612.9,0.7536]
[1744748551061,6.1994717,1613.1,1612.9,0.7536]
[1744748551227,12.39904759,1613.1,1613.0,0.34491326]
[1744748552747,13.22424759,1613.1,1613.0,0.34491326]
[1744748554230,13.22424759,1613.1,1613.0,0.91926448]
[1744748555461,6.1994717,1613.1,1613.0,0.91926448]
[1744748556870,6.19856065,1613.3,1613.0,7.11878716]
[1744748557040,6.1990638,1613.2,1613.1,0.34491326]
[1744748557554,6.1990638,1613.2,1613.1,0.91926448]
[1744748564575,7.0283638,1613.2,1613.1,0.91926448]
[1744748564929,7.0283638,1613.2,1613.1,0.57435122]
[1744748566380,7.0283638,1613.2,1613.1,0.91897505]
[1744748585186,10.0283638,1613.2,1613.1,0.91897505]
[1744748585510,10.0283638,1613.2,1613.1,0.57435122]
[1744748585839,11.82038281,1613.2,1613.1,0.57435122]
[1744748588214,9.1990638,1613.2,1613.1,0.57435122]
[1744748588405,9.5222845,1613.2,1613.1,0.57435122]
[1744748588800,6.1990638,1613.2,1613.1,0.57435122]
[1744748589484,6.1990638,1613.2,1613.1,0.91931121]
[1744748593108,6.1990638,1613.2,1613.1,0.57435122]
[1744748594823,9.1990638,1613.2,1613.1,0.91938684]
[1744748595457,9.1990638,1613.2,1613.1,0.57435122]
[1744748597616,9.9657638,1613.2,1613.1,0.57435122]
[1744748600155,6.20116581,1612.6,1612.5,0.7729]
[1744748600511,12.40421753,1612.4,1612.2,5.466]
[1744748600714,6.201935,1612.4,1612.2,5.466]
[1744748601005,6.201935,1612.4,1612.3,1.11802595]
[1744748602205,12.40327912,1612.5,1612.3,1.11802595]
[1744748602429,12.40335627,1612.5,1612.4,0.34512595]
[1744748603112,6.20157489,1612.5,1612.4,0.34512595]
[1744748611258,9.79673168,1612.9,1612.5,6.96911062]
[1744748611259,0.8052,1612.9,1612.5,6.96911062]
[1744748611572,0.8052,1613.1,1612.7,0.7679]
[1744748611736,6.2002868,1612.9,1612.7,0.7679]
[1744748611931,12.40063123,1612.9,1612.7,0.7679]
[1744748612131,6.2002868,1612.9,1612.8,0.34512595]
[1744748612966,6.2002868,1612.9,1612.8,0.91962941]
[1744748616345,7.0040868,1612.9,1612.8,0.91962941]
[1744748616670,13.60066947,1612.9,1612.8,0.91962941]
[1744748617634,10.0040868,1612.9,1612.8,0.91962941]
[1744748622554,7.0040868,1612.9,1612.8,0.91962941]
[1744748626091,6.2002868,1612.9,1612.8,0.91962941]
[1744748626889,7.0009967,1612.9,1612.8,0.91962941]
[1744748627056,6.2002868,1612.9,1612.8,0.91962941]
[1744748629889,6.2002868,1612.9,1612.8,0.57450346]
[1744748632685,6.20116581,1612.6,1612.5,0.7742]
[1744748633058,6.20116581,1612.6,1612.5,1.11966145]
[1744748633591,6.20116581,1612.6,1612.5,1.69536261]
[1744748638191,6.20116581,1612.6,1612.5,0.92116261]
[1744748640095,6.20162278,1612.5,1612.3,0.7967]
[1744748641301,6.20162278,1612.5,1612.4,0.57555905]
[1744748643874,6.20231966,1612.3,1612.2,5.463]
[1744748644193,12.40417522,1612.4,1612.1,6.99968209]
[1744748644399,6.20232205,1612.3,1612.1,0.7967]
[1744748644586,12.40429146,1612.4,1612.1,6.99978038]
[1744748644778,12.40429146,1612.4,1612.2,0.57515414]
[1744748645120,6.20231966,1612.3,1612.2,0.57515414]
[1744748647009,6.20201078,1612.4,1612.2,0.57515414]
[1744748647307,12.40420698,1612.4,1612.1,6.99978344]
[1744748647506,6.20201078,1612.4,1612.1,6.99978344]
[1744748647680,12.40429618,1612.4,1612.2,0.8188]
[1744748648095,6.20231966,1612.3,1612.2,0.8188]
[1744748648917,6.20231966,1612.3,1612.2,1.39350013]
[1744748649710,6.20201078,1612.4,1612.2,1.39350013]
[1744748650088,12.40426403,1612.4,1612.2,1.39350013]
[1744748650340,6.20231966,1612.3,1612.2,1.39350013]
[1744748651112,6.20231966,1612.3,1612.2,0.8188]
[1744748652345,6.20289167,1612.2,1612.0,0.7842]
[1744748652627,0.7634,1612.5,1612.0,6.98743137]
[1744748652628,6.20232463,1612.3,1612.0,6.98743137]
[1744748652830,12.40498352,1612.3,1612.0,6.98743137]
[1744748653002,3.7634,1612.5,1612.0,0.7842]
[1744748653197,6.20203429,1612.4,1612.0,0.7842]
[1744748653391,6.20203429,1612.4,1612.1,6.98717506]
[1744748653891,12.40413809,1612.4,1612.1,6.98717506]
[1744748654613,6.20203429,1612.4,1612.1,6.98717506]
[1744748654827,6.20155038,1612.5,1612.1,0.7842]
[1744748654983,6.20270437,1612.2,1612.1,0.7842]
[1744748655186,12.40518302,1612.3,1612.1,0.7842]
[1744748655420,12.40507398,1612.3,1612.1,0.7842]
[1744748655916,12.40514175,1612.3,1612.1,0.7842]
[1744748656316,6.20270437,1612.2,1612.1,0.7842]
[1744748656503,6.20247954,1612.3,1612.1,0.7842]
[1744748656707,0.7634,1612.5,1612.1,0.7842]
[1744748657016,6.20259694,1612.3,1612.0,6.20345145]
[1744748657215,6.2023463,1612.3,1612.1,0.7805]
[1744748657593,6.20270437,1612.2,1612.1,0.7805]
[1744748657809,12.40569851,1612.2,1612.0,0.7805]
[1744748658122,12.40558899,1612.2,1612.0,0.7805]
[1744748658496,12.40557459,1612.2,1612.0,0.7805]
[1744748658697,6.20270437,1612.2,1612.0,0.7805]
[1744748658898,12.40554296,1612.2,1612.0,0.7805]
[1744748659196,6.20270437,1612.2,1612.0,0.7805]
[1744748660828,6.20308913,1612.1,1612.0,0.7805]
[1744748660996,6.20270437,1612.2,1612.0,0.7805]
[1744748661198,6.20270437,1612.2,1612.0,2.6265871]
[1744748661503,6.20270437,1612.2,1612.0,8.83005343]
[1744748662234,6.20270437,1612.2,1612.1,0.57559011]
[1744748662534,6.20270437,1612.2,1612.1,1.15117941]
[1744748663698,6.20270437,1612.2,1612.1,0.57559011]
[1744748663903,6.20322655,1612.1,1611.9,0.754]
[1744748664329,12.4064531,1612.1,1612.0,1.15172158]
[1744748664522,6.20322655,1612.1,1612.0,1.15172158]
[1744748664827,6.20322655,1612.1,1612.0,1.49723796]
[1744748665327,6.20278761,1612.2,1612.0,1.49723796]
[1744748665505,7.03537269,1612.3,1612.0,1.49723796]
[1744748665714,7.03537269,1612.3,1612.1,0.57585934]
[1744748665715,12.40516191,1612.3,1612.1,0.57585934]
[1744748665912,6.20270437,1612.2,1612.1,1.15172158]
[1744748669414,6.20270437,1612.2,1612.1,1.49779684]
[1744748672434,6.20270437,1612.2,1612.1,1.15172158]
[1744748672943,7.01520437,1612.2,1612.1,0.57585934]
[1744748673236,6.2038588,1611.9,1611.8,0.57585934]
[1744748673415,6.2038588,1611.9,1611.8,0.92216787]
[1744748674121,6.2038588,1611.9,1611.8,1.49928312]
[1744748674637,6.2038588,1611.9,1611.8,1.15297459]
[1744748676019,6.20362416,1612.0,1611.8,1.96667459]
[1744748676304,12.40740026,1612.0,1611.8,1.96667459]
[1744748676612,12.40740026,1612.0,1611.8,0.8137]
[1744748677022,12.40729025,1612.0,1611.8,0.8137]
[1744748677907,6.20315206,1612.1,1611.8,7.01771153]
[1744748678244,6.2024219,1612.3,1612.0,7.01703578]
[1744748678538,6.20281103,1612.2,1612.0,0.8137]
[1744748678747,6.20239583,1612.3,1612.0,7.01707774]
[1744748679041,6.20272993,1612.2,1612.0,0.8137]
[1744748679253,12.40565481,1612.2,1612.1,0.57626366]
[1744748679623,12.40565481,1612.2,1612.1,1.15227302]
[1744748682651,6.20272993,1612.2,1612.1,1.15227302]
[1744748682857,6.20272993,1612.2,1612.1,0.57626366]
[1744748687763,6.96542993,1612.2,1612.1,0.57626366]
[1744748688049,6.20347394,1612.0,1611.9,5.456]
[1744748688434,12.40710929,1612.0,1611.9,0.34594634]
[1744748689261,6.20347394,1612.0,1611.9,0.34594634]
[1744748689462,6.20347394,1612.0,1611.9,0.92252951]
[1744748689638,6.20322143,1612.1,1611.9,0.92252951]
[1744748690038,6.20322143,1612.1,1612.0,0.57658317]
[1744748690842,12.40652266,1612.1,1611.9,0.57658317]
[1744748691973,12.40652266,1612.1,1612.0,0.57658317]
[1744748692773,12.40652266,1612.1,1611.9,0.57658317]
[1744748693774,12.40652266,1612.1,1612.0,0.57658317]
[1744748694974,12.40652266,1612.1,1611.9,0.57658317]
[1744748695365,12.40571926,1612.2,1611.9,0.57658317]
[1744748695577,6.20301169,1612.2,1611.9,6.7803337]
[1744748695895,6.20301169,1612.2,1611.9,7.54375069]
[1744748696060,12.40604494,1612.2,1612.0,0.57658317]
[1744748696260,6.20308913,1612.1,1612.0,0.57658317]
[1744748696882,6.20308913,1612.1,1612.0,0.92258937]
[1744748711179,6.97478913,1612.1,1612.0,0.92258937]
[1744748711895,6.97478913,1612.1,1612.0,0.57658317]
[1744748712100,6.97478913,1612.1,1612.0,1.15384057]
[1744748712806,6.97478913,1612.1,1612.0,1.15380098]
[1744748713097,9.97478913,1612.1,1612.0,1.15380098]
[1744748713299,11.82105213,1612.1,1612.0,1.15380098]
[1744748713498,11.82105213,1612.1,1612.0,0.57658317]
[1744748713690,11.82105213,1612.1,1611.5,5.451]
[1744748713691,6.20501365,1611.6,1611.5,5.451]
[1744748713893,6.20501365,1611.6,1611.5,6.3747795]
[1744748714071,6.20501365,1611.6,1611.5,6.37477399]
[1744748719623,12.40975629,1611.7,1611.5,6.37477399]
[1744748719778,12.40975629,1611.7,1611.6,0.346416]
[1744748719979,12.40975629,1611.7,1611.6,0.92377399]
[1744748724613,6.20482246,1611.7,1611.6,0.92377399]
[1744748725583,6.20390241,1611.9,1611.6,7.93350127]
[1744748725784,6.20375516,1612.0,1611.7,0.346416]
[1744748726006,6.20396119,1611.9,1611.8,0.346416]
[1744748726203,12.40757887,1612.0,1611.8,0.346416]
[1744748726401,6.20283129,1612.2,1611.8,7.3789894]
[1744748726584,6.20318937,1612.1,1611.8,7.0325734]
[1744748726917,6.20318937,1612.1,1611.9,0.70325734]
[1744748727214,12.40646305,1612.1,1611.8,7.0325734]
[1744748727415,12.40646305,1612.1,1611.8,6.97053043]
[1744748727914,12.40646305,1612.1,1611.8,7.03256649]
[1744748729114,12.40646305,1612.1,1611.8,6.97053043]
[1744748729313,6.20318937,1612.1,1611.8,7.03255894]
[1744748729497,6.20318937,1612.1,1611.8,8.0960524]
[1744748729695,6.20318937,1612.1,1611.8,14.30016617]
[1744748729890,6.20318937,1612.1,1611.8,8.03400723]
[1744748730092,6.20318937,1612.1,1611.8,8.09604246]
[1744748730302,6.20318937,1612.1,1611.8,14.300176]
[1744748730498,6.20318937,1612.1,1611.8,14.23814077]
[1744748731918,6.20318937,1612.1,1611.8,1.82989346]
[1744748732218,6.20318937,1612.1,1611.8,8.09603355]
[1744748732516,6.20318937,1612.1,1611.8,14.30015743]
[1744748732718,6.20318937,1612.1,1611.8,14.23812222]
[1744748735125,6.20280401,1612.2,1611.9,8.05009616]
[1744748735326,6.20280401,1612.2,1612.0,0.7903]
[1744748736603,6.20308913,1612.1,1611.9,2.63657617]
[1744748736802,6.20308913,1612.1,1611.9,0.7903]
[1744748740706,12.406333,1612.1,1611.9,0.7903]
[1744748741025,12.406333,1612.1,1611.9,1.13579949]
[1744748741337,6.20308913,1612.1,1611.9,1.13579949]
[1744748741636,6.20308913,1612.1,1611.9,0.34549949]
[1744748741935,12.40717452,1612.0,1611.8,6.02300509]
[1744748742508,12.40717452,1612.0,1611.9,0.57600509]
[1744748743141,6.20347394,1612.0,1611.9,0.57600509]
[1744748743435,6.20347394,1612.0,1611.9,0.92137988]
[1744748749647,13.23902552,1612.1,1611.9,0.92137988]
[1744748750021,13.23902552,1612.1,1612.0,0.57600509]
[1744748750448,13.23902552,1612.1,1612.0,0.92137988]
[1744748753027,6.2053266,1611.6,1611.4,5.447]
[1744748753222,6.20539869,1611.5,1611.4,5.447]
[1744748753842,12.41110462,1611.5,1611.3,0.8117]
[1744748754147,0.7743,1611.5,1611.2,1.9083303]
[1744748754348,6.20584299,1611.4,1611.2,1.84627617]
[1744748754551,6.20584299,1611.4,1611.1,8.91476246]
[1744748754743,6.20584299,1611.4,1611.2,0.89147625]
[1744748754943,12.41183832,1611.4,1611.2,0.89147625]
[1744748755344,6.20584299,1611.4,1611.2,0.89147625]
[1744748755757,12.41104997,1611.5,1611.2,0.89147625]
[1744748756321,0.7743,1611.6,1611.2,0.89147625]
[1744748756853,12.41110944,1611.5,1611.2,0.89147625]
[1744748757023,6.20579832,1611.4,1611.2,0.89147625]
[1744748757661,6.8864,1611.8,1611.3,4.41751828]
[1744748757827,6.20474193,1611.7,1611.3,4.41751828]
[1744748758155,6.20515868,1611.6,1611.3,10.62367091]
[1744748758520,6.20515868,1611.6,1611.3,10.68572356]
[1744748758720,12.41035584,1611.6,1611.3,10.62367091]
[1744748760863,6.20515868,1611.6,1611.3,10.6235838]
[1744748761065,12.41038525,1611.6,1611.4,1.06235838]
[1744748761234,12.41038525,1611.6,1611.3,10.6235838]
[1744748761778,6.20515587,1611.6,1611.3,10.6235838]
[1744748761964,6.20511792,1611.6,1611.3,10.623602]
[1744748765769,12.41025607,1611.6,1611.3,10.623602]
[1744748765970,12.41029063,1611.6,1611.3,10.62358666]
[1744748766199,12.41029063,1611.6,1611.3,12.94054323]
[1744748766422,6.20551803,1611.5,1611.3,3.13105657]
[1744748766701,12.41111597,1611.5,1611.2,12.54597902]
[1744748767076,12.4110844,1611.5,1611.2,12.54597902]
[1744748768697,6.20616893,1611.3,1611.2,5.448]
[1744748768874,6.97417287,1611.6,1611.3,6.20603053]
[1744748769076,12.41047,1611.6,1611.3,7.05398691]
[1744748769278,12.40957549,1611.7,1611.3,0.84795638]
[1744748769608,12.40957549,1611.7,1611.4,9.80906922]
[1744748769812,6.20501784,1611.6,1611.4,9.80906922]